[Event "44th Chess Olympiad Open 2022"]
[Site "Chennai"]
[Date "2022.08.05"]
[Round "7.6"]
[White "Escalante Ramirez, Brian Sebasti"]
[Black "Vakhidov, Jakhongir"]
[Result "0-1"]
[ECO "B50"]
[WhiteElo "2496"]
[BlackElo "2564"]
[Annotator "TA"]
[PlyCount "102"]
[EventDate "2022.07.29"]
[EventType "team-tourn"]
[EventCountry "IND"]
[SourceTitle "playchess.com"]
[Source "ChessBase"]
[SourceQuality "1"]
[WhiteTeam "Peru"]
[BlackTeam "Uzbekistan"]
[WhiteTeamCountry "PER"]
[BlackTeamCountry "UZB"]
[TimeControl "40/5400+30:1800+30"]

{[%evp 9,102,6,0,1,-4,-17,-16,-16,-13,-19,-15,-11,0,0,13,-48,0,0,18,11,11,0,0,-11,35,42,28,27,28,0,0,-28,0,0,0,0,0,0,0,0,0,3,12,-37,-37,-37,-38,-35,-35,-37,-8,-8,-12,-13,-2,-2,-2,-2,-3,-4,0,0,0,-14,-12,-12,-21,-28,-24,-36,-21,-440,-440,-401,-401,-440,-440,-440,-437,-422,-422,-487,-485,-439,-313,-1248,-709,-1390,-1302,-29980,-29981,-29981,-29982,-29980,-29979]} 1. e4 {[%emt 0:00:01]} c5 {[%emt 0:00:13]} 2. Nf3 {[%emt 0:00:06]} d6 {[%emt 0:00:08]} 3. Nc3 {[%emt 0:00:54]} Nf6 {[%emt 0:00:10]} 4. e5 {[%emt 0:03:49]} dxe5 {[%emt 0:00:09]} 5. Nxe5 {[%emt 0:00:02]} a6 {[%emt 0:00:15]} (5... e6 {looks sharper.} 6. Bb5+ Bd7 7. Qf3 Qc7) 6. g3 {[%emt 0:00:19] B50: Sicilian: 2...d6, Miscellaneous.} Qd6 $1 {[%emt 0:00:15][%mdl 4] is recently more successful than 6...Qc7.} 7. Qe2 {[%emt 0:00:27]} Nc6 {[%emt 0:00:08]} 8. Nxc6 {[%emt 0:00:19] The position is equal.} Qxc6 {[%emt 0:00:07]} 9. Rg1 {[%emt 0:00:05]} Bg4 {[%emt 0:00:09]} 10. Bg2 {[%emt 0:00:03]} Qd7 {[%emt 0:00:14] [#]} 11. Qe5 $146 {[%emt 0:04:54]} ({Predecessor:} 11. Qe3 e6 12. d3 Be7 13. Bd2 O-O 14. h3 Bh5 15. g4 Bg6 16. O-O-O Rab8 17. f4 {0-1 (61) Yoo,C (2466)-Sarana,A (2643) Chess.com INT 2021}) 11... e6 {[%emt 0:04:10]} 12. b3 {[%emt 0:19:02]} ({White should try} 12. h3 $11 Bf5 13. d3) 12... O-O-O {[%emt 0:30:49]} (12... Bd6 $15 {is superior.} 13. Qe3 O-O-O) 13. Na4 $11 {[%emt 0:10:29][%cal Ra4b6]} Qc7 {[%emt 0:03:20] Prevents Nb6+.} 14. Qxc7+ {[%emt 0:00:02]} Kxc7 {[%emt 0:00:05]} 15. Bb2 {[%emt 0:00:04]} Nd5 {[%emt 0:13:46]} 16. Be5+ {[%emt 0:08:18]} Bd6 {[%emt 0:14:18]} (16... Kd7 $11) 17. Bxg7 $14 {[%emt 0:00:09]} Rhg8 {[%emt 0:00:01]} 18. Bc3 {[%emt 0:08:30]} Nb4 {[%emt 0:00:52]} 19. Bxb4 {[%emt 0:16:34]} cxb4 {[%emt 0:00:09]} 20. d4 {[%emt 0:03:17]} e5 {[%emt 0:18:26]} 21. h3 {[%emt 0:02:32]} Bh5 {[%emt 0:04:07]} 22. g4 {[%emt 0:00:38]} Bg6 {[%emt 0:00:06]} 23. O-O-O {[%emt 0:00:13]} exd4 {[%emt 0:05:53]} 24. Rxd4 {[%emt 0:00:02]} b5 {[%emt 0:00:38]} 25. Nb2 {[%emt 0:00:11]} Rge8 {[%emt 0:02:23]} 26. f4 {[%emt 0:04:26] [#]} (26. Nd3 $11) 26... Be5 $1 $15 {[%emt 0:00:15]} 27. Rxd8 {[%emt 0:13:09]} Bxf4+ {[%emt 0:00:02] A strong pair of Bishops.} 28. Kb1 {[%emt 0:00:05]} Rxd8 {[%emt 0:00:18][%cal Be8d8,Bd8d3,Bd3e3][%mdl 32]} 29. Nd3 {[%emt 0:01:46]} Bxd3 {[%emt 0:00:20]} 30. cxd3 {[%emt 0:00:03]} Rxd3 {[%emt 0:00:10][%mdl 4096] Endgame KRB-KRB} 31. Be4 {[%emt 0:00:23][%csl LRd3,LRh7]} Re3 {[%emt 0:01:03]} 32. Bxh7 {[%emt 0:01:36]} Rxh3 {[%emt 0:00:02]} 33. Rf1 {[%emt 0:00:08]} Be5 {[%emt 0:02:15]} 34. Rxf7+ {[%emt 0:01:35]} Kd6 {[%emt 0:00:02]} 35. Ra7 {[%emt 0:01:06]} Kc5 {[%emt 0:01:52]} 36. Bf5 {[%emt 0:00:01]} Rh1+ {[%emt 0:00:07]} 37. Kc2 {[%emt 0:00:02]} Rh2+ {[%emt 0:00:09]} 38. Kd3 {[%emt 0:00:18]} Rxa2 {[%emt 0:00:23]} 39. g5 {[%emt 0:02:38]} a5 {[%emt 0:00:05]} 40. Bd7 $2 {[%emt 0:01:42][%mdl 8192] This costs White the game.} (40. g6 $11) 40... Kb6 $19 {[%emt 0:01:44]} 41. Ra8 {[%emt 0:30:22] [#]} a4 $1 {[%emt 0:12:32]} 42. bxa4 {[%emt 0:00:00]} b3 {[%emt 0:00:15][%cal Bb4b3,Bb3b2][%mdl 32]} 43. Be6 {[%emt 0:00:00]} bxa4 {[%emt 0:02:17]} 44. Ke4 {[%emt 0:00:00]} Re2+ {[%emt 0:06:00]} 45. Kf5 {[%emt 0:00:00]} b2 {[%emt 0:04:58]} 46. Ba2 {[%emt 0:00:00]} Kb5 {[%emt 0:06:24]} 47. g6 $2 {[%emt 0:00:20]} (47. Re8 Rf2+ 48. Ke4) 47... Kb4 {[%emt 0:00:25]} 48. Ra7 {[%emt 0:00:54]} Re1 {[%emt 0:01:08] ( -> ...Ka3)} 49. Re7 {[%emt 0:01:11]} Ka3 {[%emt 0:00:14] Black mates.} 50. Rxe5 {[%emt 0:01:57]} Rf1+ {[%emt 0:00:07]} 51. Ke6 {[%emt 0:00:38]} Kxa2 {[%emt 0:00:05] Weighted Error Value: White=0.55/Black=0.14 (very precise)} 0-1

[Event "44th Chess Olympiad Open 2022"]
[Site "Chennai"]
[Date "2022.08.05"]
[Round "7.7"]
[White "Shirov, Alexei"]
[Black "Jumabayev, Rinat"]
[Result "1/2-1/2"]
[ECO "C29"]
[WhiteElo "2704"]
[BlackElo "2617"]
[Annotator "TA"]
[PlyCount "120"]
[EventDate "2022.07.29"]
[EventType "team-tourn"]
[EventCountry "IND"]
[SourceTitle "playchess.com"]
[Source "ChessBase"]
[SourceQuality "1"]
[WhiteTeam "Spain"]
[BlackTeam "Kazakhstan"]
[WhiteTeamCountry "ESP"]
[BlackTeamCountry "KAZ"]
[TimeControl "40/5400+30:1800+30"]

{[%evp 9,120,-29,-8,-6,0,0,0,0,0,0,0,0,0,0,18,0,5,0,62,5,6,0,6,6,6,5,54,52,50,52,44,57,47,52,54,38,49,49,56,35,38,39,37,16,22,22,29,20,26,0,0,0,3,3,3,3,8,0,0,0,0,-72,0,0,0,0,35,0,0,0,0,0,0,0,0,0,0,-21,-21,-21,-21,-21,-21,-21,-21,-21,-21,-18,-32,-40,-40,-40,-48,-58,-58,-44,-33,-33,-33,-33,-33,-33,-33,-41,-33,-33,0,-41,-33,-33,-33,-33,-33]} 1. e4 {[%emt 1:31:00]} e5 {[%emt 1:31:00]} 2. Nc3 {[%emt 0:00:00]} Nf6 {[%emt 0:00:00]} 3. f4 {[%emt 0:00:00]} d5 {[%emt 0:00:00]} 4. fxe5 {[%emt 0:00:00]} Nxe4 {[%emt 0:00:00]} 5. Qf3 {[%emt 0:00:00]} Nc6 {[%emt 0:00:00]} 6. Bb5 {[%emt 0:00:00] C29: Vienna Game: 2...Nf6 3 f4.} Nxc3 {[%emt 0:00:00]} 7. dxc3 {[%emt 0:00:00]} Qh4+ {[%emt 0:00:00]} 8. g3 {[%emt 0:00:00] The position is equal.} Qe4+ {[%emt 0:00:00]} 9. Qxe4 {[%emt 0:00:00]} dxe4 {[%emt 0:00:00]} 10. Bxc6+ {[%emt 0:00:00] 10.Ne2 injects fresh life into this line.} bxc6 {[%emt 0:00:00]} 11. Ne2 {[%emt 0:00:00]} c5 {[%emt 0:00:00] [#]} 12. Rf1 $146 {[%emt 0:00:00]} ({Predecessor:} 12. c4 Bg4 13. Nc3 O-O-O 14. O-O Bf3 15. Bg5 f6 16. exf6 h6 17. Rxf3 exf3 18. fxg7 Bxg7 19. Bxd8 Rxd8 {1-0 (43) Swanson,S (2225)-Manley,J (2156) Hinckley Island 2008}) 12... Be7 {[%emt 0:00:00]} 13. c4 {[%emt 0:00:00]} f5 {[%emt 0:00:00]} (13... Be6 $11) 14. exf6 {[%emt 0:00:00]} (14. b3 $14) 14... Bxf6 $11 {[%emt 0:00:00]} 15. Nc3 {[%emt 0:00:00]} (15. Be3 {with more complications.} Bxb2 16. Rd1 Bf6 17. Bxc5 Bg4 18. Bd4) 15... Bxc3+ {[%emt 0:00:00]} 16. bxc3 {[%emt 0:00:00]} Be6 {[%emt 0:00:00]} 17. Be3 {[%emt 0:00:00]} Bxc4 {[%emt 0:00:00]} (17... O-O-O $11) 18. Rf5 $1 $14 {[%emt 0:00:00]} O-O-O {[%emt 0:00:00]} 19. Rxc5 {[%emt 0:00:00]} Ba6 {[%emt 0:00:00]} 20. Bf4 {[%emt 0:00:00]} Rd7 {[%emt 0:00:00]} 21. Ra5 {[%emt 0:00:00]} Bb7 {[%emt 0:00:00]} 22. Rxa7 {[%emt 0:00:00]} Re8 {[%emt 0:00:00]} 23. Rb1 {[%emt 0:00:00]} Bc6 {[%emt 0:00:00]} 24. Rb4 {[%emt 0:00:00]} e3 {[%emt 0:03:26][%cal Og7g5]} 25. Rd4 {[%emt 0:00:00]} Rf7 {[%emt 0:00:09]} 26. h4 {[%emt 0:00:00][%cal Bh2h4,Bh4h5][%mdl 32]} e2 {[%emt 0:01:54]} 27. Ra5 {[%emt 0:00:00]} Re6 {[%emt 0:01:28]} 28. a4 {[%emt 0:00:00]} h6 {[%emt 0:01:16]} 29. h5 {[%emt 0:00:00]} Bf3 {[%emt 0:00:57]} 30. Rb5 {[%emt 0:00:00]} Rb6 {[%emt 0:01:00] [#] And now ...Rxb5 would win.} 31. Rxb6 {[%emt 0:08:54]} cxb6 $11 {[%emt 0:00:02][%mdl 4096] Endgame KRB-KRB} 32. Be3 {[%emt 0:01:53]} Re7 {[%emt 0:01:51]} 33. Rd3 {[%emt 0:01:46]} Bxh5 {[%emt 0:00:20]} 34. Bxb6 {[%emt 0:00:06]} Rf7 {[%emt 0:01:23]} 35. Rd8+ {[%emt 0:00:06]} Kb7 {[%emt 0:00:31][%mdl 1024] Black has strong compensation.} 36. Bf2 {[%emt 0:00:06]} Bf3 {[%emt 0:00:19]} 37. Rd6 {[%emt 0:00:39]} Rf5 {[%emt 0:00:13]} 38. c4 {[%emt 0:02:42]} Ra5 {[%emt 0:01:57]} 39. Rd3 {[%emt 0:00:35]} Bg4 {[%emt 0:00:08]} 40. Rd4 {[%emt 0:00:41]} h5 {[%emt 0:00:13]} 41. c5 $1 {[%emt 0:30:07]} Kc7 {[%emt 0:31:02]} 42. Be3 {[%emt 0:00:00]} Ra8 {[%emt 0:00:00]} 43. Bf4+ {[%emt 0:00:00]} Kc6 {[%emt 0:00:00]} 44. Be3 {[%emt 0:00:00]} Rf8 {[%emt 0:00:00]} 45. Rd6+ {[%emt 0:00:00]} Kc7 {[%emt 0:00:00]} 46. Bf2 $1 {[%emt 0:00:00]} ({Don't blunder} 46. Bf4 $2 g5 47. Rf6+ gxf4 48. Rxf8 fxg3 49. Rf7+ Kc6 $19) 46... Rb8 {[%emt 0:00:00] [#] Hoping for ...Rb1+.} 47. Rb6 {[%emt 0:00:00] Against Rb1+} Rd8 {[%emt 0:00:00][%csl Ge2,Gg4][%cal Rd8d1]} 48. Rd6 {[%emt 0:00:00]} Ra8 {[%emt 0:00:00]} 49. Bd4 {[%emt 0:00:00]} Rxa4 {[%emt 0:00:00] Threatens to win with ...Rc4.} 50. Bxg7 {[%emt 0:00:00]} Rc4 {[%emt 0:00:00][%csl LRc2,LRc5]} 51. Be5 $1 {[%emt 0:00:00] Black must now prevent Rd4+.} Kc8 $1 {[%emt 0:00:00]} ({Of course not} 51... Rxc5 52. Rd5+ Kc6 53. Rxc5+ Kxc5 54. Bh8 $11) 52. Rd3 {[%emt 0:00:00]} Rxc2 {[%emt 0:00:00]} 53. Rc3 {[%emt 0:00:00]} Rb2 {[%emt 0:00:00] ( -> ...Rb1+)} 54. Bf4 {[%emt 0:00:00]} Rb4 {[%emt 0:01:45][%cal Oh5h4] Strongly threatening ...h4!} 55. Bd2 {[%emt 0:00:00]} Rb1+ {[%emt 0:03:06]} 56. Bc1 {[%emt 0:00:00]} Rb5 {[%emt 0:00:20]} 57. Bf4 {[%emt 0:00:00]} Rb4 {[%emt 0:00:21][%cal Oh5h4] ...h4! is the strong threat.} 58. Bd2 {[%emt 0:00:00]} Rd4 {[%emt 0:00:15] Black is slightly better.} 59. c6 {[%emt 0:00:00]} Rd5 {[%emt 0:00:35]} 60. c7 {[%emt 0:03:11]} Rd7 {[%emt 0:01:11] Weighted Error Value: White=0.05 (flawless) /Black=0.06 (flawless)} 1/2-1/2

[Event "44th Chess Olympiad Open 2022"]
[Site "Chennai"]
[Date "2022.08.05"]
[Round "7.7"]
[White "Santos Latasa, Jaime"]
[Black "Urazayev, Arystanbek"]
[Result "1/2-1/2"]
[ECO "D46"]
[WhiteElo "2675"]
[BlackElo "2430"]
[Annotator "TA"]
[PlyCount "107"]
[EventDate "2022.07.29"]
[EventType "team-tourn"]
[EventCountry "IND"]
[SourceTitle "playchess.com"]
[Source "ChessBase"]
[SourceQuality "1"]
[WhiteTeam "Spain"]
[BlackTeam "Kazakhstan"]
[WhiteTeamCountry "ESP"]
[BlackTeamCountry "KAZ"]
[TimeControl "40/5400+30:1800+30"]

{[%evp 19,107,0,16,18,25,21,22,20,39,31,31,22,20,29,33,29,26,-17,-13,-18,-17,-17,-21,-20,-31,-29,-32,-13,-16,-14,-13,-24,-13,-12,-19,-13,-4,-23,-29,-40,-40,-40,-40,-40,-23,-25,-17,-18,-18,-27,0,0,0,0,0,0,0,0,0,0,0,0,0,0,0,0,0,0,0,0,0,0,0,0,0,0,0,0,0,0,0,0,0,0,0,0,0,0,0,0]} 1. d4 {[%emt 0:00:04]} Nf6 {[%emt 0:00:58]} 2. c4 {[%emt 0:00:04]} e6 {[%emt 0:01:44]} 3. Nf3 {[%emt 0:00:47]} d5 {[%emt 0:00:15]} 4. Nc3 {[%emt 0:00:05]} c6 {[%emt 0:02:55]} 5. e3 {[%emt 0:02:31]} Nbd7 {[%emt 0:00:14]} 6. Qc2 {[%emt 0:01:23]} Bd6 {[%emt 0:00:30]} 7. Be2 {[%emt 0:00:13]} O-O {[%emt 0:01:26]} 8. O-O {[%emt 0:00:05]} dxc4 {[%emt 0:00:10]} 9. Bxc4 {[%emt 0:00:07]} a6 {[%emt 0:03:44]} 10. Rd1 {[%emt 0:00:56]} Qe7 {[%emt 0:04:13]} 11. e4 {[%emt 0:04:44] [#] aiming for e5. D46: Semi-Slav: 5 e3 Nbd7 6 Bd3, Black avoids the Meran.} e5 {[%emt 0:00:43]} 12. Be3 {[%emt 0:12:42]} exd4 {[%emt 0:06:17] [#]} 13. Bxd4 $146 {[%emt 0:01:24][%cal Oe4e5]} ({Much worse is} 13. Rxd4 Ne5 14. Nxe5 Bxe5 $15) ({Predecessor:} 13. Nxd4 Ne5 14. Bb3 Neg4 15. h3 Nxe3 16. fxe3 Bc7 17. Re1 Re8 18. Nf5 Bxf5 19. exf5 {0-1 (34) Rusli,R (1800)-Jensen,J (1800) FICGS email 2009}) 13... Ne5 {[%emt 0:03:40]} 14. Nxe5 {[%emt 0:02:30]} Bxe5 {[%emt 0:00:03]} 15. f3 {[%emt 0:02:31]} Bxd4+ {[%emt 0:07:20]} 16. Rxd4 {[%emt 0:02:02]} b5 {[%emt 0:00:03]} 17. Bf1 {[%emt 0:02:03]} c5 {[%emt 0:01:27]} 18. Nd5 {[%emt 0:01:15]} Nxd5 {[%emt 0:00:21]} 19. Rxd5 {[%emt 0:00:07]} c4 {[%emt 0:00:22]} 20. Rad1 {[%emt 0:00:32]} Be6 {[%emt 0:02:03]} 21. Rd6 {[%emt 0:00:26]} Rfd8 {[%emt 0:04:17]} 22. Qd2 {[%emt 0:06:56][%cal Rd6d8]} Rxd6 {[%emt 0:03:33]} 23. Qxd6 {[%emt 0:00:09]} Qa7+ {[%emt 0:07:40]} 24. Qd4 {[%emt 0:02:20] [#] And now Qxa7 would win.} Kf8 {[%emt 0:01:00][%cal Bg8f8,Bf8e7,Be7d6,Bd6c6,Bc6c5,Bc5b6][%mdl 32]} 25. Kf2 {[%emt 0:01:29]} Ke7 {[%emt 0:03:42]} 26. Qxa7+ {[%emt 0:00:38]} Rxa7 $11 {[%emt 0:00:05][%mdl 4096] Endgame KRB-KRB} 27. Ke3 {[%emt 0:00:07]} Rc7 {[%emt 0:02:25]} 28. Rc1 {[%emt 0:02:23]} Kd6 {[%emt 0:08:32]} 29. Kd4 {[%emt 0:01:13]} Rd7 {[%emt 0:02:06]} 30. a3 {[%emt 0:01:29]} Kc6+ {[%emt 0:01:41]} 31. Ke3 $1 {[%emt 0:00:11]} Kc5 {[%emt 0:07:47]} 32. f4 {[%emt 0:04:18] Hoping for f5.} f6 {[%emt 0:02:16]} 33. b4+ {[%emt 0:00:56]} Kb6 {[%emt 0:01:14]} 34. Be2 {[%emt 0:00:06]} a5 {[%emt 0:07:37]} 35. Rd1 {[%emt 0:00:51] The position is equal.} Rxd1 {[%emt 0:00:21]} 36. Bxd1 {[%emt 0:00:05]} axb4 {[%emt 0:00:03]} 37. axb4 {[%emt 0:00:07] KB-KB} Kc6 {[%emt 0:00:13]} 38. Kd4 {[%emt 0:00:09]} Kd6 {[%emt 0:00:26]} 39. h4 {[%emt 0:02:07]} h6 {[%emt 0:01:55]} 40. g3 {[%emt 0:00:26]} Bd7 {[%emt 0:00:57]} 41. Be2 {[%emt 0:34:35]} Bc6 {[%emt 0:30:39]} 42. Bh5 {[%emt 0:01:48]} Bd7 {[%emt 0:00:24]} 43. Bf3 {[%emt 0:01:37]} Be8 {[%emt 0:03:39]} 44. Bd1 {[%emt 0:02:38]} Bc6 {[%emt 0:00:31]} 45. Bc2 {[%emt 0:03:16]} Bd7 {[%emt 0:00:23]} 46. Bd1 {[%emt 0:01:10]} Be8 {[%emt 0:02:37]} 47. Ke3 {[%emt 0:03:50]} Bf7 {[%emt 0:01:30]} 48. Be2 {[%emt 0:03:35]} Be8 {[%emt 0:01:40]} 49. Bf3 {[%emt 0:08:33]} Bd7 {[%emt 0:01:42]} 50. Kd4 {[%emt 0:03:39]} Be8 {[%emt 0:00:47]} 51. Bg4 {[%emt 0:02:49]} Bc6 {[%emt 0:02:39]} 52. Be2 {[%emt 0:03:56]} Be8 {[%emt 0:01:57]} 53. Bf3 {[%emt 0:00:14]} Bd7 {[%emt 0:01:22]} 54. Be2 {[%emt 0:00:29] Weighted Error Value: White=0.04 (flawless) /Black=0.03 (flawless)} 1/2-1/2

[Event "44th Chess Olympiad Open 2022"]
[Site "Chennai"]
[Date "2022.08.05"]
[Round "7.7"]
[White "Nogerbek, Kazybek"]
[Black "Iturrizaga Bonelli, Eduardo"]
[Result "1/2-1/2"]
[ECO "E36"]
[WhiteElo "2437"]
[BlackElo "2619"]
[Annotator "TA"]
[PlyCount "61"]
[EventDate "2022.07.29"]
[EventType "team-tourn"]
[EventCountry "IND"]
[SourceTitle "playchess.com"]
[Source "ChessBase"]
[SourceQuality "1"]
[WhiteTeam "Kazakhstan"]
[BlackTeam "Spain"]
[WhiteTeamCountry "KAZ"]
[BlackTeamCountry "ESP"]
[TimeControl "40/5400+30:1800+30"]

{[%evp 15,61,4,15,14,10,15,26,0,0,0,6,8,24,25,16,0,0,0,0,0,0,0,0,0,0,0,0,0,0,0,0,0,0,0,0,0,0,0,0,0,0,0,0,0,0,0,0,0]} 1. d4 {[%emt 0:00:12]} Nf6 {[%emt 0:00:09]} 2. c4 {[%emt 0:00:11]} e6 {[%emt 0:00:10]} 3. Nc3 {[%emt 0:00:10]} Bb4 {[%emt 0:00:07]} 4. Qc2 {[%emt 0:00:28]} d5 {[%emt 0:00:28]} 5. a3 {[%emt 0:00:28]} Bxc3+ {[%emt 0:00:11]} 6. Qxc3 {[%emt 0:00:07]} O-O {[%emt 0:00:31]} 7. Nf3 {[%emt 0:07:13]} dxc4 {[%emt 0:05:49]} 8. Qxc4 {[%emt 0:00:00]} b6 $1 {[%emt 0:00:04]} 9. Bg5 {[%emt 0:00:00] E36: Nimzo-Indian: Classical: 4...d5 5 a3.} Ba6 {[%emt 0:00:27]} 10. Qa4 {[%emt 0:00:00]} h6 $1 {[%emt 0:13:28][%mdl 4] outshines the older 10...c5.} 11. Bxf6 {[%emt 0:04:05] White has an edge.} Qxf6 {[%emt 0:00:06]} 12. g3 {[%emt 0:00:31]} Bb7 {[%emt 0:12:43]} 13. Bg2 {[%emt 0:01:22]} Rd8 {[%emt 0:00:06]} 14. O-O {[%emt 0:00:30]} Nd7 {[%emt 0:00:13] [#]} 15. Ne5 $146 {[%emt 0:07:15] The position is equal.} (15. Rfd1 {keeps more tension.} Bd5 16. Nd2 Bxg2 17. Kxg2 c5 18. Nf3) ({Predecessor:} 15. Rfd1 c5 16. Ne5 Bxg2 17. Nxd7 Qe7 18. dxc5 Bd5 19. c6 Rac8 20. Rac1 f5 21. Ne5 {1-0 (55) Parkhov,Y (2443)-Samadov,R (2332) Chess.com INT 2021}) 15... Bxg2 {[%emt 0:00:47]} 16. Nxd7 {[%emt 0:00:06]} Rxd7 {[%emt 0:03:02]} 17. Qxd7 {[%emt 0:00:09]} Bxf1 {[%emt 0:00:03]} 18. Rxf1 $11 {[%emt 0:00:08][%mdl 4096] Endgame KQR-KQR} Rd8 {[%emt 0:00:05]} 19. Qxc7 {[%emt 0:00:06]} Qxd4 {[%emt 0:00:11]} 20. e3 {[%emt 0:00:44]} Qd2 {[%emt 0:00:33]} 21. Qxa7 {[%emt 0:02:31]} Qxb2 {[%emt 0:00:12]} 22. a4 {[%emt 0:00:44]} g6 {[%emt 0:02:58]} 23. a5 {[%emt 0:00:36]} bxa5 {[%emt 0:00:06]} 24. Qxa5 {[%emt 0:00:00]} Rd2 {[%emt 0:00:11]} 25. Qa8+ {[%emt 0:00:13]} Kg7 {[%emt 0:00:04]} 26. Qf3 {[%emt 0:00:07]} h5 {[%emt 0:00:06]} 27. h4 {[%emt 0:00:07]} Qf6 {[%emt 0:00:06]} 28. Qxf6+ {[%emt 0:00:06]} Kxf6 {[%emt 0:00:03]} 29. Kg2 {[%emt 0:00:06]} Ra2 {[%emt 0:00:04]} 30. Rb1 {[%emt 0:00:05]} Rc2 {[%emt 0:00:04]} 31. Ra1 {[%emt 0:00:04] A balanced but interesting game.  Weighted Error Value: White=0.02 (flawless) /Black=0.02 (flawless)} 1/2-1/2

[Event "44th Chess Olympiad Open 2022"]
[Site "Chennai"]
[Date "2022.08.05"]
[Round "7.8"]
[White "Mamedyarov, Shakhriyar"]
[Black "Boruchovsky, Avital"]
[Result "1/2-1/2"]
[ECO "D32"]
[WhiteElo "2759"]
[BlackElo "2551"]
[Annotator "TA"]
[PlyCount "60"]
[EventDate "2022.07.29"]
[EventType "team-tourn"]
[EventCountry "IND"]
[SourceTitle "playchess.com"]
[Source "ChessBase"]
[SourceQuality "1"]
[WhiteTeam "Azerbaijan"]
[BlackTeam "Israel"]
[WhiteTeamCountry "AZE"]
[BlackTeamCountry "ISR"]
[TimeControl "40/5400+30:1800+30"]

{[%evp 24,60,36,36,44,31,33,23,22,33,21,2,59,76,35,35,61,71,62,77,68,0,55,55,50,0,0,0,0,0,0,0,0,0,0,0,0,0,0]} 1. d4 {[%emt 0:00:45]} d5 {[%emt 0:00:10]} 2. c4 {[%emt 0:00:08]} e6 {[%emt 0:00:06]} 3. Nc3 {[%emt 0:00:08]} c5 {[%emt 0:00:05]} 4. cxd5 {[%emt 0:00:25]} cxd4 {[%emt 0:00:07]} 5. Qa4+ {[%emt 0:01:38]} Bd7 {[%emt 0:00:12]} 6. Qxd4 {[%emt 0:00:02]} exd5 {[%emt 0:00:07]} 7. Qxd5 {[%emt 0:02:28]} Nf6 {[%emt 0:00:06]} 8. Qd1 {[%emt 0:01:54]} Bc5 {[%emt 0:00:09]} 9. e3 {[%emt 0:00:29]} O-O {[%emt 0:00:28]} 10. Nf3 {[%emt 0:00:31]} Qe7 {[%emt 0:00:42]} 11. Be2 {[%emt 0:00:24]} Rd8 {[%emt 0:00:28]} 12. O-O {[%emt 0:00:26]} Nc6 {[%emt 0:00:04][%cal Bb8c6,Bc6e5,Be5g4][%mdl 32]} 13. a3 {[%emt 0:03:25]} Rac8 {[%emt 0:00:42] D32: Tarrasch Defence: Sidelines and lines without g3.} 14. Qc2 {[%emt 0:02:01]} Bd6 $1 {[%emt 0:00:48][%mdl 4] is more profitable than 14...Bg4 at the moment.} 15. Rd1 {[%emt 0:03:34]} Ne5 {[%emt 0:00:34] [#] White has an edge.} 16. Nd4 $146 {[%emt 0:07:29]} ({Predecessor:} 16. Bd2 Nxf3+ 17. Bxf3 Qe5 18. g3 Bg4 19. Bxg4 Nxg4 20. Be1 Qh5 21. h4 g5 22. Qf5 {1-0 (35) Yang,K (2481)-Steinberg,N (2542) Chess.com INT 2022}) 16... Neg4 {[%emt 0:01:34]} 17. g3 {[%emt 0:05:08]} (17. Bxg4 $5 Nxg4 18. h3 Bh2+ 19. Kf1 $11 (19. Kh1 Bd6 $14)) 17... Rc5 {[%emt 0:19:09] Against Nf5} (17... Bc5 $1 $11) 18. e4 {[%emt 0:04:20]} Rh5 {[%emt 0:08:42]} 19. Bxg4 {[%emt 0:21:06]} Nxg4 {[%emt 0:03:52]} 20. Nd5 {[%emt 0:06:57] Pair of Knights!} Qe8 {[%emt 0:03:22]} 21. h4 {[%emt 0:03:53] White is more active.} Rc8 {[%emt 0:04:27]} 22. Qe2 {[%emt 0:00:14]} (22. Nc3 $14) 22... Re5 {[%emt 0:03:39]} (22... Bc5 $1 $11) 23. f3 $14 {[%emt 0:01:50] And now Bf4 would win.} Ba4 $1 {[%emt 0:10:14] [#] Strongly threatening ...Rxd5.} 24. Bf4 {[%emt 0:17:16]} ({And not} 24. fxg4 Bxd1 25. Qxd1 Bc5 $17) ({Better is} 24. b3 $1 $14 Rxd5 25. exd5 (25. bxa4 Rxd4 26. Rxd4 Bc5 $11) 25... Qxe2 26. Nxe2 Bxb3 27. Rd2) 24... Bxd1 {[%emt 0:04:16] The position is equal.} 25. Rxd1 {[%emt 0:00:06]} Rxd5 {[%emt 0:02:02]} 26. exd5 {[%emt 0:00:10]} Bxf4 {[%emt 0:00:26]} 27. gxf4 {[%emt 0:01:34]} Qe3+ {[%emt 0:01:19]} 28. Qxe3 {[%emt 0:00:13]} ({Not} 28. Kg2 $2 Qxe2+ 29. Nxe2 Ne3+ 30. Kg3 Nxd1 $19) 28... Nxe3 {[%emt 0:00:02]} 29. Rd2 {[%emt 0:00:06]} Nxd5 {[%emt 0:08:24]} 30. Nf5 {[%emt 0:00:13]} g6 {[%emt 0:00:08] Weighted Error Value: White=0.10 (very precise) /Black=0.09 (flawless)} 1/2-1/2